bitfinex/quotes_SOLUSD_20250822
["timestamp","ask_amount","ask_price","bid_price","bid_amount"]
[1755871712542,74.76,188.69,188.6,5.30222693]
[1755871712731,74.76,188.69,188.63,26.0]
[1755871712929,74.76,188.69,188.6,5.83244962]
[1755871713122,74.76,188.69,188.63,26.0]
[1755871713344,0.66,188.68,188.55,5.30352359]
[1755871713540,0.66,188.68,188.51,0.53047583]
[1755871713723,0.66,188.68,188.46,21.77176733]
[1755871713926,0.66,188.68,188.29,5.3109565]
[1755871713927,26.0,188.6,188.29,5.3109565]
[1755871714127,0.66,188.59,188.39,28.11170556]
[1755871714328,28.11170556,188.49,188.32,16.47700704]
[1755871714529,28.11170556,188.45,188.32,0.53101104]
[1755871714750,0.66,188.44,188.31,0.53103924]
[1755871714949,0.66,188.44,188.29,5.3109565]
[1755871715162,28.11170556,188.37,188.25,5.31204937]
[1755871715338,0.66,188.36,188.23,5.84380858]
[1755871715527,0.66,188.36,188.19,5.31371301]
[1755871715731,0.66,188.36,188.14,0.53151908]
[1755871715958,0.66,188.36,188.2,5.310957]
[1755871716130,0.66,188.36,188.09,0.53166037]
[1755871716131,28.11170556,188.21,188.09,0.53166037]
[1755871716327,0.66,188.2,188.0,54.63785207]
[1755871716535,0.66,188.2,188.05,45.9992893]
[1755871716766,0.66,188.2,188.03,28.11170556]
[1755871716963,0.66,188.2,188.02,18.61479822]
[1755871717131,0.66,188.2,188.04,0.53180174]
[1755871717327,28.11170556,188.05,187.96,0.53202809]
[1755871717551,0.66,188.04,187.88,5.32238733]
[1755871717859,0.66,188.1,187.9,10.0]
[1755871718058,0.66,188.1,187.91,1.22410152]
[1755871718260,0.66,188.15,187.92,10.66]
[1755871718468,0.66,188.28,188.17,26.0]
[1755871718644,0.66,188.28,188.05,0.53177346]
[1755871718960,28.11170556,188.06,187.94,28.11170556]
[1755871719166,36.20688715,188.2,187.93,5.3211302]
[1755871719167,0.66,188.11,187.93,5.3211302]
[1755871719334,0.66,188.24,188.1,28.11170556]
[1755871719655,0.66,188.24,188.16,26.0]
[1755871719862,0.66,188.29,188.16,26.0]
[1755871720035,26.0971675,188.42,188.22,28.11170556]
[1755871720356,0.66,188.41,188.32,26.0]
[1755871720565,0.66,188.41,188.21,28.11170556]
[1755871720744,0.66,188.41,188.27,28.11170556]
[1755871720945,28.11170556,188.3,188.2,0.66]
[1755871721259,0.66,188.29,188.11,0.66]
[1755871721464,0.66,188.37,188.16,26.0]
[1755871721766,0.66,188.49,188.39,26.0]
[1755871721945,28.11170556,188.44,188.29,0.66]
[1755871722136,28.11170556,188.49,188.3,26.81539058]
[1755871722332,0.66,188.5,188.41,28.11170556]
[1755871722557,85.20713163,188.69,188.49,28.11170556]
[1755871722744,0.66,188.68,188.47,26.0]
[1755871723063,0.66,188.68,188.41,26.0]
[1755871723241,0.66,188.68,188.5,28.11170556]
[1755871723452,0.66,188.68,188.49,28.11170556]
[1755871723761,0.66,188.68,188.59,26.0]
[1755871723963,28.11170556,188.66,188.5,0.53050397]
[1755871724161,0.66,188.68,188.58,26.0]
[1755871724459,0.66,188.68,188.5,0.53050397]
[1755871724460,28.11170556,188.62,188.5,0.53050397]
[1755871724758,0.66,188.67,188.56,26.0]
[1755871724942,74.76,188.69,188.61,26.14216157]
[1755871725151,74.76,188.69,188.61,18.55681034]
[1755871725346,74.76,188.69,188.66,0.14216157]
[1755871725547,74.76,188.69,188.61,18.55681034]
[1755871725548,74.76,188.69,188.64,26.0]
[1755871725762,28.11170556,188.65,188.59,26.0]
[1755871725939,0.66,188.68,188.59,26.0]
[1755871726135,74.82,188.69,188.65,26.0]
[1755871726640,74.82,188.69,188.59,26.28432314]
[1755871726867,15.56918204,188.69,188.68,28.3960287]
[1755871727160,38.27805381,188.73,188.71,26.0]
[1755871727360,11.98941689,188.73,188.72,33.69488414]
[1755871727548,11.98941689,188.73,188.72,5.58317858]
[1755871727744,11.98941689,188.73,188.72,26.0]
[1755871727953,11.98941689,188.73,188.59,0.67241237]
[1755871728143,11.98941689,188.73,188.72,0.14216157]
[1755871728550,11.98941689,188.73,188.72,28.3960287]
[1755871728963,74.76,188.82,188.75,26.0]
[1755871729140,73.19212064,188.78,188.77,28.3960287]
[1755871729336,70.54072601,188.78,188.77,28.3960287]
[1755871729537,74.76,188.82,188.8,26.0]
[1755871729773,74.76,188.82,188.81,0.28432314]
[1755871729942,72.10860537,188.82,188.81,28.3960287]
[1755871730266,72.10860537,188.82,188.78,26.25287492]
[1755871730443,69.45721074,188.82,188.81,28.3960287]
[1755871730647,69.17301074,188.82,188.81,28.3960287]
[1755871730864,72.10860537,188.86,188.85,0.28432314]
[1755871731174,69.45721074,188.86,188.78,0.25287492]
[1755871731384,69.45721074,188.86,188.79,0.52968907]
[1755871731675,69.45721074,188.86,188.85,28.11170556]
[1755871731872,98.2489163,188.86,188.78,0.25287492]
[1755871732052,69.45721074,188.86,188.83,28.11170556]
[1755871732247,0.68,188.85,188.78,0.25287492]
[1755871732454,28.11170556,188.84,188.78,0.25287492]
[1755871732650,0.68,188.85,188.78,0.25287492]
[1755871732874,28.11170556,188.79,188.78,0.25287492]
[1755871733074,0.68,188.79,188.73,0.24980605]
[1755871733849,0.68,188.79,188.73,28.36151161]
[1755871734058,0.68,188.79,188.73,0.24980605]
[1755871734363,28.11170556,188.75,188.73,0.24980605]
[1755871734674,28.11170556,188.78,188.73,0.24980605]
[1755871734861,28.11170556,188.85,188.73,0.24980605]
[1755871735056,0.68,188.85,188.73,0.24980605]
[1755871735262,0.68,188.85,188.82,28.11170556]
[1755871735461,0.68,188.84,188.75,26.0]
[1755871735660,0.68,188.84,188.76,28.11170556]
[1755871735847,0.68,188.84,188.67,0.03]
[1755871735848,69.45721074,188.86,188.7,26.0]
[1755871736054,0.68,188.85,188.7,26.0]
[1755871736286,0.68,188.85,188.68,0.25]
[1755871736665,0.68,188.85,188.67,0.03]
[1755871737563,0.96432314,188.85,188.67,0.03]
[1755871737878,0.68,188.84,188.83,28.11170556]
[1755871738061,0.68,188.84,188.7,0.5299417]
[1755871738267,0.68,188.84,188.67,0.14216157]
[1755871738570,69.45721074,188.86,188.68,0.52999788]
[1755871738877,0.68,188.85,188.68,0.52999788]
[1755871739078,0.68,188.85,188.82,28.11170556]
[1755871739266,0.68,188.84,188.68,0.52999788]
[1755871739579,0.68,188.84,188.8,28.11170556]
[1755871739777,0.68,188.83,188.77,26.0]
[1755871739957,0.68,188.83,188.67,0.67218754]
[1755871740162,0.68,188.83,188.82,28.11170556]
[1755871740384,69.45721074,188.86,188.82,28.11170556]
[1755871740564,69.45721074,188.86,188.77,0.52974519]
[1755871740763,0.68,188.85,188.74,0.14216157]
[1755871741076,69.51721074,188.86,188.81,26.0]
[1755871741383,69.51721074,188.86,188.71,26.0]
[1755871741559,0.68,188.85,188.71,0.52991362]
[1755871741753,0.68,188.85,188.8,28.11170556]
[1755871741958,0.68,188.84,188.79,28.11170556]
[1755871742280,69.51721074,188.86,188.78,26.0]
[1755871742473,69.51721074,188.86,188.85,28.11170556]
[1755871743067,69.51721074,188.86,188.85,28.3960287]
[1755871743382,74.76,188.9,188.88,26.0]
[1755871743585,74.76,188.9,188.89,28.3960287]
[1755871743970,74.76,188.9,188.85,0.52952078]
[1755871744176,74.76,188.9,188.89,0.28432314]
[1755871744366,74.76,188.9,188.89,28.3960287]
[1755871744560,74.76,188.9,188.89,28.11170556]
[1755871744763,26.43279001,188.93,188.92,3.28e-06]
[1755871745066,26.14545788,188.93,188.92,3.55e-06]
[1755871745253,74.76,188.94,188.92,3.55e-06]
[1755871745457,26.14545788,188.93,188.91,0.5293526]
[1755871745658,72.11114949,188.94,188.9,0.28432314]
[1755871745860,72.11114949,188.94,188.93,28.3960287]
[1755871746061,67.64,188.98,188.94,0.28432314]
[1755871746271,67.64,188.98,188.94,0.52926855]
[1755871746483,67.64,188.98,188.93,0.28432314]
[1755871746663,67.64,188.98,188.97,28.11170556]
[1755871746868,64.99114949,188.98,188.97,28.11170556]
[1755871747067,74.76,189.14,189.01,0.28432314]
[1755871747270,50.75114949,189.02,189.01,0.28432314]
[1755871747482,43.34694949,189.02,189.01,26.28432314]
[1755871747688,74.76,189.14,189.03,10.0]
[1755871747989,74.76,189.14,189.05,0.28432314]
[1755871748196,39.61114949,189.06,189.04,26.52898857]
[1755871748373,39.61114949,189.06,189.05,76.56432314]
[1755871748573,36.96229898,189.06,189.05,76.28]
[1755871748777,36.75995608,189.06,189.05,0.28432314]
[1755871748995,34.7929284,189.06,188.97,5.38191463]
[1755871749207,34.7929284,189.06,188.98,0.52915652]
[1755871749386,34.1129284,189.06,188.95,0.52924053]
[1755871749620,34.1129284,189.06,189.0,26.0]
[1755871749897,31.46590072,189.06,189.0,26.0]
[1755871750066,31.46590072,189.06,189.01,26.52907253]
[1755871750267,31.46590072,189.06,188.96,38.16]
[1755871750569,29.49887304,189.06,188.96,43.55279746]
[1755871750892,29.49887304,189.06,188.96,38.16]
[1755871751395,29.49887304,189.06,188.97,78.3237229]
[1755871751590,29.49887304,189.06,188.98,78.26]
[1755871751790,29.49887304,189.06,188.99,78.22]
[1755871752092,29.49887304,189.06,188.96,38.16]
[1755871752269,0.28432314,189.05,188.96,38.16]
[1755871752471,1.34123571,189.04,188.96,38.16]
[1755871752676,0.68,189.04,188.99,26.0]
[1755871752893,0.68,189.03,188.98,78.1]
[1755871753093,0.68,189.03,188.98,76.66]
[1755871753287,0.68,189.03,188.77,0.67]
[1755871753597,21.30778977,188.9,188.78,38.14]
[1755871753774,0.39781349,189.02,188.78,38.14]
[1755871754100,10.0,188.99,188.79,0.52968907]
[1755871754296,36.0,188.96,188.78,38.14]
[1755871754500,0.39781349,188.95,188.74,0.67]
[1755871754673,0.39781349,188.95,188.79,0.67]
[1755871754875,15.91529617,188.97,188.9,21.30778977]
[1755871755074,15.91529617,188.97,188.84,0.67]
[1755871755269,15.91529617,188.97,188.81,0.52963296]
[1755871755612,15.91529617,188.97,188.67,10.03]
[1755871755613,0.14216157,188.93,188.69,0.55996979]
[1755871755793,0.28432314,188.88,188.69,0.03]
[1755871756004,0.39781349,188.87,188.69,0.03]
[1755871756188,10.0,188.82,188.69,0.03]
[1755871756388,10.0,188.74,188.69,0.03]
[1755871756620,0.39781349,188.73,188.69,0.03]
[1755871756790,21.59211291,188.7,188.69,0.03]
[1755871756996,0.28432314,188.67,188.5,0.03]
[1755871757301,0.39781349,188.67,188.54,0.7]
[1755871757613,0.14216157,188.75,188.54,0.7]
[1755871757614,0.39781349,188.75,188.54,0.7]
[1755871757789,0.39781349,188.74,188.54,10.7]
[1755871757983,10.39781349,188.93,188.58,26.0]
[1755871758182,21.30778977,188.74,188.59,1.2302508]
[1755871758387,0.39781349,188.86,188.59,1.51457394]
[1755871758611,26.39781349,188.86,188.67,28.11658061]
[1755871758812,10.0,188.81,188.59,0.81457394]
[1755871759032,10.0,188.81,188.57,0.7]
[1755871759033,0.53997506,188.8,188.57,0.7]
[1755871759534,0.39781349,188.8,188.57,1.23030704]
[1755871759810,0.39781349,188.84,188.65,0.28432314]
[1755871759993,28.11658061,188.74,188.64,0.7]
[1755871760194,10.0,188.81,188.64,0.7]
[1755871760395,5.29376129,188.91,188.5,0.56050397]
[1755871760396,0.06,188.71,188.5,0.56050397]
[1755871760608,26.0,188.62,188.5,0.03]
[1755871760821,10.0,188.6,188.5,0.03]
[1755871760987,0.28432314,188.58,188.5,0.03]
[1755871761190,0.39781349,188.57,188.5,0.03]
[1755871761588,0.39781349,188.59,188.5,0.03]
[1755871761784,0.45781349,188.71,188.54,0.03]
[1755871762038,0.06,188.67,188.59,26.0]
[1755871762318,0.06,188.71,188.69,26.0]
[1755871762618,0.39781349,188.93,188.73,26.0]
[1755871762822,10.0,189.0,188.74,0.7]
[1755871763122,10.0,188.95,188.73,0.52985746]
[1755871763299,28.11658061,188.84,188.75,0.52980132]
[1755871763496,10.0,188.93,188.72,26.0]
[1755871763696,28.11658061,188.76,188.68,5.2999788]
[1755871763897,26.0,188.82,188.61,0.53019458]
[1755871764194,28.11658061,188.67,188.6,13.25533731]
[1755871764396,0.14216157,188.71,188.58,6.00278926]
[1755871764638,0.39781349,188.7,188.55,5.30363298]
[1755871764788,10.0,188.74,188.5,0.03]
[1755871764993,26.0,188.67,188.51,5.30462478]
[1755871765318,26.0,188.71,188.5,0.03]
[1755871765319,28.11658061,188.55,188.5,0.03]
[1755871765518,28.40090375,188.55,188.5,0.03]
[1755871765921,0.28432314,188.54,188.5,0.03]
[1755871766215,0.39781349,188.53,188.5,0.03]
[1755871766427,0.39781349,188.64,188.5,0.73]
[1755871766633,10.0,188.84,188.51,0.7]
[1755871766925,0.39781349,188.83,188.59,26.0]
[1755871767232,10.39781349,188.88,188.61,26.0]
[1755871767517,10.0,188.84,188.66,26.0]
[1755871767723,0.39781349,188.83,188.72,0.243]
[1755871767907,0.39781349,188.83,188.72,1.875]
[1755871768223,0.39781349,188.86,188.72,1.875]
[1755871768612,10.0,188.84,188.72,1.875]
[1755871768810,0.39781349,188.94,188.72,1.875]
[1755871769131,38.2,189.12,188.84,26.0]
[1755871769132,0.39781349,188.97,188.84,26.0]
[1755871769318,0.39781349,188.96,188.84,26.0]
[1755871769642,0.39781349,189.02,188.81,28.11658061]
[1755871769932,0.39781349,189.02,188.8,5.29661016]
[1755871769933,28.11658061,188.82,188.8,5.29661016]
[1755871770232,0.14216157,188.93,188.76,26.0]
[1755871770410,0.39781349,188.92,188.81,28.11658061]
[1755871770606,10.0,188.97,188.79,26.0]
[1755871770847,28.11658061,188.94,188.8,1.22966101]
[1755871771012,28.11658061,188.83,188.76,18.54193646]
[1755871771334,0.39781349,188.82,188.74,5.29810991]
[1755871771513,28.11658061,188.88,188.81,28.11658061]
[1755871771710,0.14216157,188.96,188.87,28.11658061]
[1755871771711,0.39781349,188.96,188.87,28.11658061]
[1755871771937,28.11658061,188.99,188.88,0.7]
[1755871772180,0.39781349,189.05,188.79,26.7]
[1755871772181,28.11658061,188.89,188.79,26.7]
[1755871772314,0.39781349,188.88,188.77,0.7]
[1755871772622,0.39781349,188.95,188.79,26.0]
[1755871772810,10.0,188.92,188.79,0.7]
[1755871773152,10.0,188.88,188.71,5.0]
[1755871773315,0.39781349,188.87,188.71,33.11658061]
[1755871773509,28.11658061,188.73,188.71,5.0]
[1755871773709,26.0,188.78,188.71,5.0]
[1755871774017,28.40090375,188.72,188.71,5.0]
[1755871774335,0.28432314,188.71,188.55,0.7]
[1755871774546,0.39781349,188.74,188.56,0.53033517]
[1755871774710,28.11658061,188.58,188.55,0.7]
[1755871774913,0.68213663,188.71,188.55,0.7]
[1755871775135,0.39781349,188.71,188.56,0.7]
[1755871775414,0.39781349,188.78,188.57,18.56074666]
[1755871775613,28.11658061,188.68,188.58,0.7]
[1755871775815,0.39781349,188.67,188.58,0.7]
[1755871776111,0.39781349,188.73,188.59,0.7]
[1755871776436,0.39781349,188.81,188.59,0.7]
[1755871776738,0.39781349,188.84,188.61,0.28432314]
[1755871776934,28.11658061,188.82,188.74,26.0]
[1755871777138,0.39781349,188.81,188.67,0.7]
[1755871777442,28.11658061,188.85,188.71,26.0]
[1755871777623,0.06,188.93,188.84,28.11658061]
[1755871777825,0.06,188.93,188.9,28.11658061]
[1755871778137,0.06,188.93,188.85,26.0]
[1755871778430,0.06,188.93,188.78,0.7]
[1755871778610,0.06,188.93,188.75,0.7]
[1755871778611,0.39781349,188.92,188.75,0.7]
[1755871778813,0.39781349,188.92,188.68,18.5499258]
[1755871778814,0.39781349,188.92,188.76,0.7]
[1755871779011,28.11658061,188.82,188.76,0.7]
[1755871779217,0.39781349,188.91,188.81,28.11658061]
[1755871779420,28.11658061,188.82,188.71,5.29912587]
[1755871779609,0.39781349,188.81,188.72,0.7]
[1755871779820,0.39781349,188.92,188.72,0.7]
[1755871780167,28.11658061,188.76,188.69,0.7]
[1755871780338,0.39781349,188.75,188.62,0.7]
[1755871780654,10.0,188.73,188.53,0.7]
[1755871780820,28.11658061,188.54,188.52,0.03]
[1755871781022,28.5143941,188.53,188.52,0.03]
[1755871781221,0.39781349,188.53,188.52,0.03]
[1755871781459,26.30212605,188.71,188.52,0.03]
[1755871781460,0.39781349,188.63,188.52,0.03]
[1755871781626,0.39781349,188.63,188.54,28.11658061]
[1755871781949,0.39781349,188.63,188.52,0.03]
[1755871782134,0.28432314,188.59,188.52,0.03]
[1755871782323,54.11658061,188.53,188.52,0.03]
[1755871782522,0.28432314,188.52,188.5,0.03]
[1755871782853,26.0,188.46,188.35,0.1]
[1755871783067,26.0,188.38,188.35,0.1]
[1755871783222,28.11658061,188.36,188.35,0.1]
[1755871783423,43.70988654,188.36,188.35,0.1]
[1755871783641,43.70988654,188.36,188.17,0.03]
[1755871783642,26.0,188.28,188.17,0.03]
[1755871783971,0.39781349,188.27,188.18,0.7]
[1755871784120,0.39781349,188.38,188.18,0.7]
[1755871784321,28.11658061,188.22,188.17,0.03]
[1755871784549,26.0,188.3,188.17,0.03]
[1755871784720,0.39781349,188.29,188.17,0.03]
[1755871784921,0.39781349,188.33,188.18,0.7]
[1755871785230,0.39781349,188.33,188.24,28.11658061]
[1755871785427,0.39781349,188.38,188.25,5.31208499]
[1755871785648,0.39781349,188.4,188.37,28.11658061]
[1755871785833,0.39781349,188.54,188.39,54.11658061]
[1755871786027,0.39781349,188.59,188.4,0.7]
[1755871786546,28.11658061,188.41,188.28,26.0]
[1755871786752,0.39781349,188.4,188.37,28.11658061]
[1755871786925,0.39781349,188.49,188.33,0.7]
[1755871787133,10.39781349,188.48,188.27,0.66]
[1755871787334,0.28432314,188.42,188.27,0.66]
[1755871787550,28.11658061,188.28,188.18,5.314061]
[1755871787752,0.28432314,188.26,188.12,5.31565548]
[1755871787935,28.11658061,188.23,188.14,0.66]
[1755871788141,0.39781349,188.22,188.14,0.66]
[1755871788337,0.39781349,188.28,187.93,0.53211302]
[1755871788539,0.28432314,188.27,188.12,0.66]
[1755871788751,0.39781349,188.26,188.08,0.66]
[1755871789056,0.39781349,188.37,188.17,28.14658061]
[1755871789244,0.28432314,188.3,188.17,0.03]
[1755871789438,26.0,188.25,188.17,0.03]
[1755871789639,28.11658061,188.18,188.17,0.03]
[1755871790164,0.28432314,188.14,187.93,13.30247347]
[1755871790346,0.28432314,188.1,187.9,5.32197977]
[1755871790670,0.39781349,188.09,187.91,0.66]
[1755871791007,26.0,188.06,187.83,0.66]
[1755871791146,0.28432314,188.08,187.81,2.78207173]
[1755871791147,26.4051787,188.01,187.81,2.78207173]
[1755871791348,28.11658061,187.9,187.7,0.03]
[1755871791553,28.11658061,187.71,187.7,0.03]
[1755871791952,0.28432314,187.83,187.7,0.03]
[1755871792166,28.11658061,187.78,187.7,5.3576505]
[1755871792479,0.28432314,187.88,187.7,0.69]
[1755871792639,2.779,187.89,187.78,10.0]
[1755871792840,2.779,187.89,187.76,26.0]
[1755871793152,2.779,187.89,187.73,0.66]
[1755871793503,28.11658061,187.75,187.7,0.03]
[1755871793640,26.0,187.84,187.7,0.03]
[1755871794047,28.11658061,187.87,187.74,10.0]
[1755871794257,2.779,187.89,187.74,26.0]
[1755871794484,2.779,187.89,187.77,26.0]
[1755871794809,1.339,187.89,187.88,28.11658061]
[1755871795108,0.66,188.03,187.91,10.0]
[1755871795404,0.66,188.03,187.9,26.0]
[1755871795617,0.66,188.03,187.93,5.32105369]
[1755871795795,0.66,188.1,187.96,10.0]
[1755871796116,2.77627905,188.13,188.09,28.11658061]
[1755871796281,0.66,188.12,187.96,0.28432314]
[1755871796612,28.11658061,188.09,187.92,10.0]
[1755871796811,28.11658061,188.06,187.99,28.11658061]
[1755871796974,2.77627905,188.13,188.0,10.28432314]
[1755871797168,0.66,188.14,187.94,10.0]
[1755871797397,0.66,188.18,188.03,10.0]
[1755871797606,26.30868084,188.31,188.08,28.11658061]
[1755871797607,0.66,188.17,188.08,28.11658061]
[1755871797773,0.66,188.17,187.99,0.28432314]
[1755871797978,0.66,188.17,188.05,0.28432314]
[1755871798173,80.52,188.31,188.13,10.0]
[1755871798174,0.66,188.25,188.13,10.0]
[1755871798376,0.66,188.25,188.13,0.28432314]
[1755871798596,0.66,188.32,188.16,0.28432314]
[1755871798775,0.66,188.32,188.24,28.11658061]
[1755871799178,0.66,188.32,188.13,10.0]
[1755871799380,0.66,188.32,188.19,28.11658061]
[1755871799678,28.11658061,188.23,188.12,10.0]
[1755871799985,0.66,188.22,188.08,10.0]
[1755871800182,28.11658061,188.14,188.03,10.0]
[1755871800385,0.66,188.23,188.04,10.0]
[1755871800585,0.66,188.23,188.09,10.0]
[1755871800889,0.66,188.23,188.18,28.11658061]
[1755871801081,18.58564905,188.32,188.05,10.0]
[1755871801082,28.11658061,188.19,188.05,10.0]
[1755871801403,0.66,188.18,188.0,10.0]
[1755871801611,0.66,188.18,188.09,10.0]
[1755871801776,5.97414713,188.18,188.02,10.0]
[1755871801978,28.77658061,188.17,188.06,10.0]
[1755871802202,0.66,188.17,188.03,10.0]
[1755871802505,0.66,188.17,187.92,38.32]
[1755871802506,28.11658061,188.11,187.98,10.0]
[1755871802707,0.66,188.11,187.97,10.0]
[1755871803003,0.66,188.11,187.99,10.0]
[1755871803203,0.66,188.11,187.93,10.1]
[1755871803709,0.66,188.11,187.98,10.0]
[1755871804010,26.0,188.08,187.93,0.1]
[1755871804195,0.66,188.07,187.96,28.11658061]
[1755871804388,0.66,188.07,187.95,10.0]
[1755871804709,0.66,188.09,188.04,28.11658061]
[1755871804911,28.77658061,188.08,187.95,10.0]
[1755871805077,28.11658061,188.07,188.0,28.11658061]
[1755871805273,0.66,188.14,188.06,28.11658061]
[1755871805493,26.66,188.14,187.95,10.0]
[1755871805704,26.0,188.09,187.95,10.0]
[1755871805887,0.66,188.09,187.98,10.0]
[1755871806087,0.66,188.09,187.97,10.0]
[1755871806406,28.11658061,188.03,187.93,0.1]
[1755871806617,28.11658061,187.94,187.93,0.1]
[1755871806904,0.66,188.02,187.95,0.03]
[1755871807202,5.31547334,188.13,187.95,0.03]
[1755871807423,5.31547334,188.13,187.99,10.0]
[1755871807424,0.66,188.09,187.99,10.0]
[1755871807706,28.11658061,188.0,187.95,0.03]
[1755871807916,26.0,188.04,187.95,0.03]
[1755871808092,0.66,188.06,187.95,0.03]
[1755871808294,26.66,188.06,187.95,0.03]
[1755871808476,0.80216157,188.05,187.95,0.03]
[1755871808676,0.80216157,188.05,187.93,0.1]
[1755871808677,28.11658061,187.96,187.93,0.1]
[1755871808916,28.11658061,187.96,187.86,0.03]
[1755871808917,54.11658061,187.94,187.86,0.03]
[1755871809117,26.0,187.94,187.71,10.0]
[1755871809404,0.66,187.99,187.9,28.11658061]
[1755871809608,0.66,188.04,187.95,10.0]
[1755871809783,0.66,188.04,187.88,0.34]
[1755871809981,28.11658061,187.9,187.71,0.53273666]
[1755871810181,26.0,187.99,187.79,10.0]
[1755871810409,26.0,187.88,187.78,28.11658061]
[1755871810610,0.14216157,187.87,187.8,28.11658061]
[1755871810787,0.28432314,187.86,187.77,10.0]
[1755871810984,0.28432314,187.86,187.8,10.0]
[1755871811193,0.66,187.9,187.81,28.11658061]
[1755871811417,0.66,187.9,187.8,10.0]
[1755871811585,26.0,187.94,187.81,10.0]
[1755871811786,0.66,187.94,187.85,10.0]
[1755871812090,5.98095473,187.94,187.84,10.0]
[1755871812392,5.98095473,187.94,187.73,10.0]
[1755871812393,0.94432314,187.93,187.73,10.0]
[1755871812590,0.28432314,187.88,187.7,0.03]
[1755871812803,0.28432314,187.84,187.7,0.03]
[1755871813110,0.66,187.83,187.7,0.03]
[1755871813413,0.28432314,187.74,187.67,0.03]
[1755871813587,28.11658061,187.68,187.67,0.03]
[1755871813908,0.66,187.68,187.67,0.03]
[1755871814109,0.66,187.68,187.54,10.0]
[1755871814295,0.66,187.73,187.66,10.0]
[1755871814497,5.98502116,187.8,187.73,10.0]
[1755871814812,5.98502116,187.8,187.76,10.0]
[1755871814813,0.66,187.8,187.76,10.0]
[1755871815109,13.30611035,187.89,187.76,10.0]
[1755871815299,0.66,187.85,187.77,10.0]
[1755871815484,0.66,187.88,187.77,10.0]
[1755871815685,0.66,187.88,187.75,10.0]
[1755871815883,28.11658061,187.84,187.75,10.0]
[1755871816103,19.28908588,187.88,187.8,10.0]
[1755871816412,19.28908588,187.88,187.65,13.69266668]
[1755871816413,26.0,187.85,187.72,10.0]
[1755871816617,28.11658061,187.77,187.66,10.0]
[1755871816789,28.11658061,187.77,187.53,0.03]
[1755871816790,28.11658061,187.72,187.63,10.0]
[1755871816988,0.66,187.71,187.57,10.0]
[1755871817316,0.66,187.71,187.65,0.03]
[1755871817493,0.66,187.71,187.53,0.03]
[1755871817697,28.11658061,187.58,187.53,0.03]
[1755871817895,28.11658061,187.56,187.53,0.03]
[1755871818093,26.0,187.62,187.54,10.0]
[1755871818289,0.66,187.68,187.59,38.11658061]
[1755871818516,2.78946557,187.7,187.53,0.03]
[1755871818517,28.11658061,187.7,187.64,10.0]
[1755871818715,0.66,187.79,187.68,38.11658061]
[1755871819012,0.66,187.87,187.79,10.0]
[1755871819314,38.38,188.02,187.53,0.03]
[1755871819315,5.31914893,188.0,187.91,10.0]
[1755871819528,2.78633231,188.01,187.97,10.0]
[1755871819686,11.13754371,187.95,187.94,10.0]
[1755871820028,11.79754371,187.95,187.85,10.0]
[1755871820199,0.66,187.94,187.75,10.0]
[1755871820387,0.66,187.94,187.84,10.0]
[1755871820586,0.66,187.94,187.78,9.4314]
[1755871820894,11.28781651,187.94,187.85,9.4314]
[1755871821099,2.78505609,188.08,187.91,28.11658061]
[1755871821404,0.66,188.04,187.87,9.4314]
[1755871821610,5.31914893,188.0,187.88,9.4314]
[1755871821821,5.97914893,188.0,187.83,9.4314]
[1755871821998,0.66,187.99,187.84,9.4314]